fUSD/lending_fUSD_20240117
["ID","MTS","AMOUNT","RATE_DAILY","PERIOD"]
[311987831,1705531865107,-500.0,0.00022465,2]
[311987832,1705531865116,-150.0,0.00022465,2]
[311987833,1705531865125,-500.0,0.00022465,2]
[311987834,1705531865134,-533.74,0.00022465,2]
[311987835,1705531865143,-195.56,0.00022465,2]
[311987836,1705531865153,-500.0,0.00022465,2]
[311987837,1705531865162,-500.0,0.00022465,2]
[311987838,1705531865171,-500.0,0.00022465,2]
[311987839,1705531865180,-500.0,0.00022465,2]
[311987840,1705531865189,-247.17,0.00022465,2]
[311987841,1705531865198,-500.0,0.00022465,2]
[311987842,1705531865207,-500.0,0.00022465,2]
[311987843,1705531865217,-500.0,0.00022465,2]
[311987844,1705531865226,-500.0,0.00022465,2]
[311987845,1705531865236,-402.57,0.00022465,2]
[311987846,1705531865246,-500.0,0.00022465,2]
[311987847,1705531865256,-500.0,0.00022465,2]
[311987848,1705531865265,-500.0,0.00022465,2]
[311987849,1705531865275,-500.0,0.00022465,2]
[311987850,1705531865284,-500.0,0.00022465,2]
[311987851,1705531865296,-500.0,0.00022465,2]
[311987852,1705531865306,-500.0,0.00022465,2]
[311987853,1705531865316,-500.0,0.00022465,2]
[311987854,1705531865325,-500.0,0.00022465,2]
[311987855,1705531865335,-500.0,0.00022465,2]
[311987856,1705531865345,-200.95,0.00022465,2]
[311987857,1705531865355,-300.0,0.00022465,2]
[311987858,1705531865365,-500.0,0.00022465,2]
[311987859,1705531865375,-500.0,0.00022465,2]
[311987860,1705531865385,-500.0,0.00022465,2]
[311987861,1705531865394,-500.0,0.00022465,2]
[311987862,1705531865404,-627.99,0.00022465,2]
[311987863,1705531865414,-224.78,0.00022465,2]
[311987864,1705531865424,-500.0,0.00022465,2]
[311987865,1705531865433,-500.0,0.00022465,2]
[311987866,1705531865443,-165.08,0.00022465,2]
[311987867,1705531865453,-525.29686406,0.00022465,2]
[311987868,1705531865462,-500.0,0.00022465,2]
[311987869,1705531865471,-500.0,0.00022465,2]
[311987870,1705531865480,-500.0,0.00022465,2]
[311987871,1705531865489,-500.0,0.00022465,2]
[311987872,1705531865499,-500.0,0.00022465,2]
[311987873,1705531865508,-500.0,0.00022465,2]
[311987874,1705531865518,-181.88,0.00022465,2]
[311987875,1705531865527,-500.0,0.00022465,2]
[311987876,1705531865538,-500.0,0.00022465,2]
[311987877,1705531865547,-500.0,0.00022465,2]
[311987878,1705531865556,-450.0,0.00022465,2]
[311987879,1705531865565,-500.0,0.00022465,2]
[311987880,1705531865575,-500.0,0.00022465,2]
[311987881,1705531865584,-243.89,0.00022465,2]
[311987882,1705531865594,-500.0,0.00022465,2]
[311987883,1705531865603,-500.0,0.00022465,2]
[311987884,1705531865613,-165.75,0.00022465,2]
[311987885,1705531865623,-500.0,0.00022465,2]
[311987886,1705531865632,-270.99,0.00022465,2]
[311987887,1705531865641,-500.0,0.00022465,2]
[311987888,1705531865651,-500.0,0.00022465,2]
[311987889,1705531865660,-500.0,0.00022465,2]
[311987890,1705531865669,-500.0,0.00022465,2]
[311987891,1705531865678,-500.0,0.00022465,2]
[311987892,1705531865687,-500.0,0.00022465,2]
[311987893,1705531865696,-500.0,0.00022465,2]
[311987894,1705531865706,-500.0,0.00022465,2]
[311987895,1705531865715,-500.0,0.00022465,2]
[311987896,1705531865726,-500.0,0.00022465,2]
[311987897,1705531865736,-500.0,0.00022465,2]
[311987898,1705531865746,-500.0,0.00022465,2]
[311987899,1705531865755,-500.0,0.00022465,2]
[311987900,1705531865766,-500.0,0.00022465,2]
[311987901,1705531865775,-500.0,0.00022465,2]
[311987902,1705531865785,-500.0,0.00022465,2]
[311987903,1705531865796,-500.0,0.00022465,2]
[311987904,1705531865807,-500.0,0.00022465,2]
[311987905,1705531865816,-505.34,0.00022465,2]
[311987906,1705531865826,-500.0,0.00022465,2]
[311987907,1705531865835,-352.13106156,0.00022465,2]
[311987908,1705531865847,-500.0,0.00022465,2]
[311987909,1705531865856,-500.0,0.00022465,2]
[311987910,1705531865865,-500.0,0.00022465,2]
[311987911,1705531865874,-500.0,0.00022465,2]
[311987912,1705531865883,-463.18074064,0.00022465,2]
[311987913,1705531865911,-380.72,0.00022191,2]
[311987914,1705531865920,-36.81925936,0.00022465,2]
[311987915,1705531865929,-500.0,0.00022465,2]
[311987916,1705531865939,-500.0,0.00022465,2]
[311987917,1705531865948,-500.0,0.00022465,2]
[311987918,1705531865957,-500.0,0.00022465,2]
[311987919,1705531865967,-510.625343,0.00022465,2]
[311987920,1705531865976,-500.0,0.00022465,2]
[311987921,1705531865985,-500.0,0.00022465,2]
[311987922,1705531865995,-500.0,0.00022465,2]
[311987923,1705531866005,-500.0,0.00022465,2]
[311987924,1705531866015,-500.0,0.00022465,2]
[311987925,1705531866024,-500.0,0.00022465,2]
[311987926,1705531866034,-500.0,0.00022465,2]
[311987927,1705531866046,-394.89,0.00022465,2]
[311987928,1705531866056,-500.0,0.00022465,2]
[311987929,1705531866065,-500.0,0.00022465,2]
[311987930,1705531866075,-774.57,0.00022465,2]
[311987931,1705531866085,-500.0,0.00022465,2]
[311987932,1705531866094,-500.0,0.00022465,2]
[311987933,1705531866103,-500.0,0.00022465,2]
[311987934,1705531866112,-500.0,0.00022465,2]
[311987935,1705531866121,-500.0,0.00022465,2]
[311987936,1705531866130,-500.0,0.00022465,2]
[311987937,1705531866139,-500.0,0.00022465,2]
[311987938,1705531866149,-500.0,0.00022465,2]
[311987939,1705531866158,-500.0,0.00022465,2]
[311987940,1705531866167,-500.0,0.00022465,2]
[311987941,1705531866176,-521.37,0.00022465,2]
[311987942,1705531866186,-500.0,0.00022465,2]
[311987943,1705531866196,-500.0,0.00022465,2]
[311987944,1705531866205,-500.0,0.00022465,2]
[311987945,1705531866215,-500.0,0.00022465,2]
[311987946,1705531866224,-155.43,0.00022465,2]
[311987947,1705531866233,-500.0,0.00022465,2]
[311987948,1705531866243,-500.0,0.00022465,2]
[311987949,1705531866472,-1214.88,0.00022465,2]
[311987950,1705531866483,-500.0,0.00022465,2]
[311987951,1705531866495,-500.0,0.00022465,2]
[311987952,1705531866506,-500.0,0.00022465,2]
[311987953,1705531866518,-115.25479201,0.00022465,2]
[311987954,1705531867255,-274.65952212,0.00021917,2]
[311987955,1705531867609,-225.34047788,0.00021917,2]
[311987956,1705531867629,-500.0,0.00021917,2]
[311987957,1705531867639,-500.0,0.00021917,2]
[311987958,1705531867650,-500.0,0.00022191,2]
[311987959,1705531867659,-250.0,0.00022423,2]
[311987960,1705531867669,-150.0,0.00022423,2]
[311987961,1705531867678,-289.31234142,0.00022465,2]
[311987962,1705531867693,-1190.10286657,0.00022465,2]
[311987963,1705531867702,-566.18,0.00022465,2]
[311987964,1705531867712,-500.0,0.00022465,2]
[311987965,1705531867721,-500.0,0.00022465,2]
[311987966,1705531867735,-500.0,0.00022465,2]
[311987967,1705531867745,-500.0,0.00022465,2]
[311987968,1705531867753,-1020.87,0.00022465,2]
[311987969,1705531867762,-500.0,0.00022465,2]
[311987970,1705531867772,-500.0,0.00022465,2]
[311987971,1705531867782,-500.0,0.00022465,2]
[311987972,1705531867794,-500.0,0.00022465,2]
[311987973,1705531867803,-138.08798574,0.00022465,2]
[311987974,1705531867820,-361.91201426,0.00022465,2]
[311987975,1705531867830,-302.41803785,0.00022465,2]
[311987976,1705531867843,-197.58196215,0.00022465,2]
[311987977,1705531867852,-249.1493502,0.00022465,2]
[311987978,1705531868102,-500.0,0.00021917,2]
[311987979,1705531868112,-500.0,0.00021917,2]
[311987980,1705531868121,-500.0,0.00022191,2]
[311987981,1705531868130,-500.0,0.00022465,2]
[311987982,1705531868140,-531.12461463,0.00022465,2]
[311987983,1705531868150,-526.33,0.00022465,2]
[311987984,1705531868159,-500.0,0.00022465,2]
[311987985,1705531868169,-500.0,0.00022465,2]
[311987986,1705531868179,-500.0,0.00022465,2]
[311987987,1705531868188,-500.0,0.00022465,2]
[311987988,1705531868198,-500.0,0.00022465,2]
[311987989,1705531868207,-643.22,0.00022465,2]
[311987990,1705531868217,-500.0,0.00022465,2]
[311987991,1705531868227,-500.0,0.00022465,2]
[311987992,1705531868236,-500.0,0.00022465,2]
[311987993,1705531868245,-500.0,0.00022465,2]
[311987994,1705531868255,-500.0,0.00022465,2]
[311987995,1705531868264,-500.0,0.00022465,2]
[311987996,1705531868274,-500.0,0.00022465,2]
[311987997,1705531868283,-500.0,0.00022465,2]
[311987998,1705531868294,-500.0,0.00022465,2]
[311987999,1705531868303,-197.88,0.00022465,2]
[311988000,1705531868313,-500.0,0.00022465,2]
[311988001,1705531868322,-500.0,0.00022465,2]
[311988002,1705531868332,-500.0,0.00022465,2]
[311988003,1705531868342,-500.0,0.00022465,2]
[311988004,1705531868352,-500.0,0.00022465,2]
[311988005,1705531868361,-718.68,0.00022465,2]
[311988006,1705531868370,-500.0,0.00022465,2]
[311988007,1705531868380,-500.0,0.00022465,2]
[311988008,1705531868389,-500.0,0.00022465,2]
[311988009,1705531868399,-500.0,0.00022465,2]
[311988010,1705531868408,-500.0,0.00022465,2]
[311988011,1705531868418,-500.0,0.00022465,2]
[311988012,1705531868427,-500.0,0.00022465,2]
[311988013,1705531868437,-500.0,0.00022465,2]
[311988014,1705531868446,-500.0,0.00022465,2]
[311988015,1705531868459,-500.0,0.00022465,2]
[311988016,1705531868469,-500.0,0.00022465,2]
[311988017,1705531868478,-501.98059409,0.00022465,2]
[311988018,1705531868488,-500.0,0.00022465,2]
[311988019,1705531868498,-500.0,0.00022465,2]
[311988020,1705531868507,-500.0,0.00022465,2]
[311988021,1705531868517,-168.0,0.00022465,2]
[311988022,1705531868527,-500.0,0.00022465,2]
[311988023,1705531868536,-500.0,0.00022465,2]
[311988024,1705531868547,-500.0,0.00022465,2]
[311988025,1705531868556,-174.77259013,0.00022465,2]
[311988026,1705531868566,-5171.22,0.00022465,2]
[311988027,1705531868576,-500.0,0.00022465,2]
[311988028,1705531868585,-500.0,0.00022465,2]
[311988029,1705531868595,-500.0,0.00022465,2]
[311988030,1705531868605,-500.0,0.00022465,2]
[311988031,1705531868615,-500.0,0.00022465,2]
[311988032,1705531868624,-500.0,0.00022465,2]
[311988033,1705531868634,-500.0,0.00022465,2]
[311988034,1705531868643,-500.0,0.00022465,2]
[311988035,1705531868652,-527.57,0.00022465,2]
[311988036,1705531868661,-500.0,0.00022465,2]
[311988037,1705531868671,-500.0,0.00022465,2]
[311988038,1705531868680,-337.44155037,0.00022465,2]
[311988039,1705531868693,-162.55844963,0.00022465,2]
[311988040,1705531868703,-1385.66,0.00022465,2]
[311988041,1705531868712,-500.0,0.00022465,2]
[311988042,1705531868721,-500.0,0.00022465,2]
[311988043,1705531868732,-244.81,0.00022465,2]
[311988044,1705531868741,-500.0,0.00022465,2]
[311988045,1705531868754,-575.98,0.00022465,2]
[311988046,1705531868763,-500.0,0.00022465,2]
[311988047,1705531868773,-500.0,0.00022465,2]
[311988048,1705531868782,-500.0,0.00022465,2]
[311988049,1705531868793,-89.15286014,0.00022465,2]
[311988050,1705531868811,-410.84713986,0.00022465,2]
[311988051,1705531868825,-447.77286014,0.00022465,2]
[311988052,1705531868838,-52.22713986,0.00022465,2]
[311988053,1705531868848,-500.0,0.00022465,2]
[311988054,1705531868864,-500.0,0.00022465,2]
[311988055,1705531868873,-448.63,0.00022465,2]
[311988056,1705531868883,-500.0,0.00022465,2]
[311988057,1705531868895,-500.0,0.00022465,2]
[311988058,1705531868904,-500.0,0.00022465,2]
[311988059,1705531868913,-500.0,0.00022465,2]
[311988060,1705531868924,-500.0,0.00022465,2]
[311988061,1705531868933,-500.0,0.00022465,2]
[311988062,1705531868943,-504.96,0.00022465,2]
[311988063,1705531868953,-45.02030007,0.00022465,2]
[311988064,1705531913912,2521.02199253,6.94e-05,2]
[311988065,1705531989932,205.0,9.8e-05,2]
[311988066,1705531993405,4915.56107248,0.0001305,2]
[311988067,1705531993766,238.71530372,0.000101,2]
[311988068,1705532009778,225.0,0.00018296,2]
[311988069,1705532177733,360.86535805,0.00018296,2]
[311988070,1705532197950,481.85796747,0.00018296,2]
[311988071,1705532310110,49936.30857824,0.00018296,2]
[311988073,1705532320444,200.98286647,0.00018205,2]
[311988095,1705532454506,284.99599772,0.00018205,2]
[311988097,1705532474494,283.14658005,0.00018205,2]
[311988100,1705532635798,5212.91,0.00025,30]
[311988102,1705532698044,64562.88118277,0.0003,120]
[311988110,1705532960103,-873.86064671,0.00018509,2]
[311988111,1705532960126,-730.0,0.0001851,2]
[311988112,1705532960149,-530.01,0.00018516,2]
[311988113,1705532960169,-468.72474145,0.00019175,2]
[311988114,1705532960189,-219.90355198,0.00019386,2]
[311988115,1705532960209,-117.45816712,0.00019721,2]
[311988139,1705533031357,-72.90981478,0.00019721,2]
[311988141,1705533031371,-216.03253204,0.0002,2]
[311988144,1705533031389,-1269.19127237,0.0002,2]
[311988147,1705533031403,-413.67916593,0.0002,2]
[311988155,1705533031476,-279.69657276,0.0002,2]
[311988157,1705533031491,-639.82306706,0.0002,2]
[311988158,1705533031504,-150.0,0.00020177,2]
[311988159,1705533031515,-22606.40749833,0.00020178,2]
[311988160,1705533031528,-12587.86,0.00020179,2]
[311988161,1705533031541,-250.0,0.00020214,2]
[311988162,1705533031553,-499.99,0.00020218,2]
[311988163,1705533031566,-1451.94,0.00020219,2]
[311988164,1705533031578,-9266.71,0.0002023,2]
[311988165,1705533031590,-164.45,0.00020247,2]
[311988166,1705533031600,-432.48,0.00020256,2]
[311988167,1705533031611,-294.07,0.00020275,7]
[311988168,1705533031622,-350.4,0.00020277,2]
[311988169,1705533031634,-710.24,0.00020291,2]
[311988170,1705533031645,-158.33,0.00020445,2]
[311988171,1705533031657,-4460.20725268,0.00020454,2]
[311988172,1705533031669,-250.0,0.000205,2]
[311988173,1705533031681,-248.73,0.00020548,2]
[311988174,1705533031694,-158.82,0.00020585,2]
[311988175,1705533031706,-154.79,0.00020597,2]
[311988176,1705533031718,-649.6,0.00020649,2]
[311988177,1705533031728,-530.01,0.0002078,2]
[311988178,1705533031741,-158.33,0.000208,2]
[311988179,1705533031753,-840.53100085,0.00020816,2]
[311988180,1705533031764,-158.82,0.00020862,2]
[311988181,1705533031778,-154.79,0.00020872,2]
[311988182,1705533031790,-256.83,0.00020917,2]
[311988183,1705533031802,-155.63,0.00020969,2]
[311988184,1705533031812,-6462.92436058,0.00020974,2]
[311988185,1705533031832,-299.84,0.00020974,2]
[311988186,1705533031858,-1692.26572143,0.00020974,2]
[311988187,1705533031874,-2310.99156271,0.00020974,2]
[311988188,1705533031889,-1270.173871,0.00020974,2]
[311988189,1705533031904,-577.50003185,0.00020974,2]
[311988204,1705533039226,-158.33194915,0.00020078,2]
[311988206,1705533039239,-645.48805085,0.00020974,2]
[311988210,1705533039292,-7462.23924305,0.00020974,2]
[311988211,1705533039309,-813.90715853,0.00020974,2]
[311988212,1705533039321,-729.44024601,0.00021,2]
[311988213,1705533039333,-505.64,0.00021054,2]
[311988214,1705533039345,-158.33194914,0.00021085,2]
[311988215,1705533039356,-158.82,0.00021139,2]
[311988216,1705533039367,-154.79,0.00021146,2]
[311988217,1705533039379,-158.33,0.00021155,2]
[311988218,1705533039389,-250.0,0.00021191,2]
[311988219,1705533039400,-150.0,0.00021191,2]
[311988220,1705533039411,-150.0,0.00021191,2]
[311988221,1705533039422,-176.27,0.00021191,2]
[311988222,1705533039435,-500.0,0.00021191,2]
[311988223,1705533039447,-1451.94,0.00021197,2]
[311988224,1705533039460,-155.63,0.00021251,2]
[311988225,1705533039471,-253.30120106,0.00021259,2]
[311988226,1705533039482,-155.15,0.00021331,2]
[311988227,1705533039492,-1000.0,0.00021399,2]
[311988228,1705533039503,-158.82,0.00021415,2]
[311988229,1705533039515,-154.79,0.00021421,2]
[311988230,1705533039530,-250.0,0.00021465,2]
[311988231,1705533039541,-250.0,0.000215,2]
[311988232,1705533039552,-158.33,0.0002151,2]
[311988233,1705533039564,-155.63,0.00021533,2]
[311988234,1705533039575,-155.15,0.00021556,2]
[311988235,1705533039587,-158.82,0.00021692,2]
[311988237,1705533039598,-154.79,0.00021696,2]
[311988239,1705533039609,-289.08046109,0.00021739,2]
[311988242,1705533039621,-289.08046109,0.00021739,2]
[311988244,1705533039631,-289.08046109,0.00021739,2]
[311988246,1705533039643,-289.08046109,0.00021739,2]
[311988248,1705533039654,-289.08046109,0.00021739,2]
[311988252,1705533039665,-289.08046109,0.00021739,2]
[311988255,1705533039676,-289.08046109,0.00021739,2]
[311988258,1705533039687,-289.08046109,0.00021739,2]
[311988260,1705533039697,-289.08046109,0.00021739,2]
[311988263,1705533039708,-289.08046109,0.00021739,2]
[311988267,1705533039719,-289.08046109,0.00021739,2]
[311988270,1705533039730,-289.08046109,0.00021739,2]
[311988273,1705533039740,-289.08046109,0.00021739,2]
[311988276,1705533039753,-289.08046109,0.00021739,2]
[311988279,1705533039763,-289.08046109,0.00021739,2]
[311988281,1705533039774,-289.08046109,0.00021739,2]
[311988283,1705533039785,-289.08046109,0.00021739,2]
[311988285,1705533039796,-289.08046109,0.00021739,2]
[311988287,1705533039807,-289.08046109,0.00021739,2]
[311988289,1705533039818,-289.08046109,0.00021739,2]
[311988292,1705533039830,-289.08046109,0.00021739,2]
[311988295,1705533039845,-289.08046109,0.00021739,2]
[311988297,1705533039856,-289.08046109,0.00021739,2]
[311988299,1705533039867,-289.08046109,0.00021739,2]
[311988301,1705533039879,-289.08046109,0.00021739,2]
[311988304,1705533039890,-289.08046109,0.00021739,2]
[311988306,1705533039902,-289.08046109,0.00021739,2]
[311988308,1705533039913,-289.08046109,0.00021739,2]
[311988310,1705533039925,-289.08046109,0.00021739,2]
[311988314,1705533039936,-289.08046109,0.00021739,2]
[311988317,1705533039948,-289.08046109,0.00021739,2]
[311988321,1705533039959,-289.08046109,0.00021739,2]
[311988324,1705533039971,-289.08046109,0.00021739,2]
[311988328,1705533039982,-289.08046109,0.00021739,2]
[311988331,1705533039993,-289.08046109,0.00021739,2]
[311988335,1705533040003,-150.0,0.00021739,2]
[311988338,1705533040015,-176.27,0.00021739,2]
[311988341,1705533040026,-155.15,0.0002178,2]
[311988343,1705533040037,-5000.0,0.000218,2]
[311988345,1705533040049,-5120.27542867,0.00021814,2]
[311988491,1705533040905,-1873.36773767,0.00021814,2]
[311988494,1705533040917,-295.93711943,0.00021814,2]
[311988497,1705533040929,-2028.3597189,0.00021814,2]
[311988501,1705533040951,-4356.57129533,0.00021814,2]
[311988503,1705533040960,-155.63,0.00021814,2]
[311988505,1705533040969,-992.4308,0.00021816,2]
[311988507,1705533040978,-2209.55780656,0.00021816,2]
[311988509,1705533040988,-1000.0,0.00021817,2]
[311988511,1705533040997,-3643.76229887,0.00021817,2]
[311988513,1705533041010,-1859.09042726,0.00021817,2]
[311988515,1705533041019,-418.32,0.00021852,2]
[311988517,1705533041027,-418.32,0.00021858,2]
[311988519,1705533041037,-328.36809681,0.00021903,2]
[311988521,1705533041046,-155.0,0.00021912,2]
[311988523,1705533041055,-3052.3554378,0.00021912,2]
[311988525,1705533041065,-252.83161781,0.00021912,2]
[311988528,1705533041080,-155.0,0.00021912,2]
[311988530,1705533041091,-324.82425038,0.00021912,2]
[311988532,1705533041102,-171.79656324,0.00021912,2]
[311988534,1705533041112,-279.18625117,0.00021912,2]
[311988536,1705533041121,-386.55515331,0.00021913,2]
[311988538,1705533041130,-4270.25221425,0.00021913,2]
[311988540,1705533041141,-588.23033068,0.00021914,2]
[311988542,1705533041150,-336.92043028,0.00021914,2]
[311988544,1705533041160,-400.0,0.00021914,2]
[311988546,1705533041171,-119473.59362787,0.00021914,2]
[311988548,1705533041181,-503.84036235,0.00021914,2]
[311988550,1705533041191,-318.65326446,0.00021914,2]
[311988552,1705533041202,-7103.57322363,0.00021914,5]
[311988554,1705533041212,-150.0,0.00021914,2]
[311988556,1705533041222,-482.31469063,0.00021915,2]
[311988558,1705533041232,-24336.94623895,0.00021915,2]
[311988561,1705533041254,-294.75,0.00021915,2]
[311988564,1705533041265,-931.0200004,0.00021915,2]
[311988566,1705533041277,-260.86506116,0.00021915,2]
[311988568,1705533041287,-2214.80442955,0.00021915,2]
[311988570,1705533041299,-1648.79103856,0.00021915,2]
[311988579,1705533041375,-1639.25725798,0.00021915,2]
[311988581,1705533041385,-1499.9593735,0.00021916,2]
[311988583,1705533041395,-203.17659496,0.00021916,2]
[311988586,1705533041405,-501.09834726,0.00021916,2]
[311988588,1705533041415,-532.61615679,0.00021916,2]
[311988590,1705533041424,-542.16085306,0.00021916,2]
[311988592,1705533041434,-68381.67509888,0.00021916,2]
[311988601,1705533041511,-661.79443256,0.00021916,2]
[311988603,1705533041522,-53527.03983133,0.00021916,2]
[311988605,1705533041532,-343.61767463,0.00021916,5]
[311988607,1705533041541,-500.0,0.00021917,2]
[311988609,1705533041551,-155.0,0.00021917,2]
[311988610,1705533041560,-501.28358872,0.00021917,2]
[311988611,1705533041569,-511.58672284,0.00021917,2]
[311988612,1705533041579,-500.0,0.00021917,2]
[311988613,1705533041589,-559.26882752,0.00021917,2]
[311988614,1705533041598,-500.0,0.00021917,2]
[311988615,1705533041608,-500.25228923,0.00021917,2]
[311988616,1705533041617,-167.85255491,0.00021917,2]
[311988618,1705533041626,-605.64098396,0.00021917,2]
[311988619,1705533041636,-500.0,0.00021917,2]
[311988621,1705533041646,-500.0,0.00021917,2]
[311988623,1705533041656,-500.0,0.00021917,2]
[311988625,1705533041665,-542.33361033,0.00021917,2]
[311988627,1705533041675,-500.0,0.00021917,2]
[311988630,1705533041685,-506.78640483,0.00021917,2]
[311988632,1705533041694,-500.0,0.00021917,2]
[311988634,1705533041704,-500.0,0.00021917,2]
[311988636,1705533041714,-500.0,0.00021917,2]
[311988638,1705533041723,-500.67386981,0.00021917,2]
[311988640,1705533041733,-500.0,0.00021917,2]
[311988642,1705533041743,-504.43069245,0.00021917,2]
[311988644,1705533041752,-500.0,0.00021917,2]
[311988646,1705533041762,-500.0,0.00021917,2]
[311988648,1705533041772,-508.59054216,0.00021917,2]
[311988649,1705533041781,-500.0,0.00021917,2]
[311988652,1705533041791,-188.36,0.00021917,2]
[311988654,1705533041801,-500.0,0.00021917,2]
[311988656,1705533041811,-500.0,0.00021917,2]
[311988658,1705533041820,-500.0,0.00021917,2]
[311988659,1705533041830,-519.23598596,0.00021917,2]
[311988661,1705533041842,-500.0,0.00021917,2]
[311988663,1705533041852,-173.33868904,0.00021917,2]
[311988666,1705533041861,-501.19791061,0.00021917,2]
[311988668,1705533041871,-500.0,0.00021917,2]
[311988670,1705533041881,-511.24720472,0.00021917,2]
[311988672,1705533041891,-516.17501819,0.00021917,2]
[311988674,1705533041900,-500.0,0.00021917,2]
[311988676,1705533041911,-500.0,0.00021917,2]
[311988677,1705533041920,-500.0,0.00021917,2]
[311988679,1705533041930,-500.0,0.00021917,2]
[311988681,1705533041940,-500.0,0.00021917,2]
[311988684,1705533041949,-500.0,0.00021917,2]
[311988686,1705533041958,-500.0,0.00021917,2]
[311988688,1705533041968,-500.0,0.00021917,2]
[311988690,1705533041978,-500.0,0.00021917,2]
[311988691,1705533041987,-500.0,0.00021917,2]
[311988694,1705533041996,-527.46627905,0.00021917,2]
[311988696,1705533042006,-500.0,0.00021917,2]
[311988698,1705533042016,-500.0,0.00021917,2]
[311988700,1705533042027,-617.22,0.00021917,2]
[311988702,1705533042036,-505.17553014,0.00021917,2]
[311988704,1705533042048,-500.0,0.00021917,2]
[311988706,1705533042057,-500.5836376,0.00021917,2]
[311988708,1705533042066,-526.15755132,0.00021917,2]
[311988710,1705533042075,-500.0,0.00021917,2]
[311988712,1705533042087,-500.0,0.00021917,2]
[311988714,1705533042097,-500.0,0.00021917,2]
[311988716,1705533042106,-500.0,0.00021917,2]
[311988718,1705533042116,-500.0,0.00021917,2]
[311988720,1705533042127,-511.73048817,0.00021917,2]
[311988722,1705533042136,-566.29,0.00021917,2]
[311988724,1705533042145,-500.0,0.00021917,2]
[311988726,1705533042155,-500.0,0.00021917,2]
[311988728,1705533042164,-500.0,0.00021917,2]
[311988730,1705533042174,-500.0,0.00021917,2]
[311988732,1705533042183,-500.0,0.00021917,2]
[311988734,1705533042193,-501.34684988,0.00021917,2]
[311988736,1705533042203,-500.0,0.00021917,2]
[311988738,1705533042212,-166.82641189,0.00021917,2]
[311988740,1705533042222,-500.0,0.00021917,2]
[311988742,1705533042231,-500.0,0.00021917,2]
[311988744,1705533042239,-500.0,0.00021917,2]
[311988747,1705533042248,-500.0,0.00021917,2]
[311988750,1705533042258,-500.0,0.00021917,2]
[311988752,1705533042267,-500.0,0.00021917,2]
[311988754,1705533042277,-500.0,0.00021917,2]
[311988756,1705533042286,-500.0,0.00021917,2]
[311988758,1705533042296,-266.96,0.00021917,2]
[311988760,1705533042305,-500.0,0.00021917,2]
[311988762,1705533042315,-500.0,0.00021917,2]
[311988764,1705533042325,-500.0,0.00021917,2]
[311988766,1705533042334,-155.52603274,0.00021917,2]
[311988768,1705533042344,-501.32353101,0.00021917,2]
[311988770,1705533042353,-500.0,0.00021917,2]
[311988772,1705533042362,-500.0,0.00021917,2]
[311988775,1705533042373,-500.0,0.00021917,2]
[311988778,1705533042382,-500.0,0.00021917,2]
[311988781,1705533042392,-500.0,0.00021917,2]
[311988784,1705533042401,-309.48128696,0.00021917,2]
[311988792,1705533042426,-190.51871304,0.00021917,2]
[311988795,1705533042435,-500.0,0.00021917,2]
[311988798,1705533042445,-500.0,0.00021917,2]
[311988801,1705533042454,-500.0,0.00021917,2]